bitfinex/quotes_ETHUSD_20240731
["timestamp","ask_amount","ask_price","bid_price","bid_amount"]
[1722435230279,2.99482,3339.1,3338.1,1.62637463]
[1722435230479,2.99482,3339.1,3338.2,0.08930158]
[1722435230480,2.99506,3338.9,3338.2,0.08930158]
[1722435230805,2.99513,3338.8,3338.2,0.08930158]
[1722435231123,2.99513,3338.8,3338.3,0.08929868]
[1722435231304,2.99513,3338.8,3337.7,2.99602]
[1722435231613,1.12351503,3339.2,3337.6,3.66190908]
[1722435231614,2.99494,3339.0,3337.6,3.66190908]
[1722435231815,2.99518,3338.7,3337.8,2.99596]
[1722435232026,2.99514,3338.8,3337.7,3.45151701]
[1722435232351,2.99486,3339.1,3338.1,2.99566]
[1722435232488,2.99486,3339.1,3338.1,2.99564]
[1722435232676,4.11829503,3339.2,3338.2,0.08930158]
[1722435232677,1.12351503,3339.2,3338.2,0.08930158]
[1722435232891,5.27219,3339.3,3338.2,0.08930158]
[1722435232892,2.2775,3339.3,3338.5,2.99534]
[1722435233081,2.2775,3339.3,3338.3,0.30849316]
[1722435233082,2.2775,3339.3,3338.4,2.99535]
[1722435233289,2.2775,3339.3,3338.3,3.36386879]
[1722435233290,2.2775,3339.3,3338.6,0.08950998]
[1722435233648,5.98974,3339.1,3338.7,0.08950708]
[1722435233779,2.99486,3339.1,3338.7,0.08950708]
[1722435233972,5.2722,3339.3,3338.8,0.08950417]
[1722435234175,1.86585112,3339.2,3338.8,0.08950417]
[1722435234425,4.86063112,3339.2,3338.8,0.08950417]
[1722435234731,4.86063112,3339.2,3338.2,2.99562]
[1722435234930,1.86585112,3339.2,3338.3,2.99552]
[1722435235084,5.2722,3339.3,3338.6,2.99521]
[1722435235085,2.2775,3339.3,3338.6,2.99521]
[1722435235424,2.2775,3339.3,3338.7,0.0894808]
[1722435235635,2.2775,3339.3,3338.3,2.99553]
[1722435235636,2.99473,3339.2,3338.3,2.99553]
[1722435235831,2.2775,3339.3,3338.4,0.08948951]
[1722435235832,5.27222,3339.3,3338.4,0.08948951]
[1722435235976,2.99483,3339.1,3338.2,2.99562]
[1722435236224,2.99483,3339.1,3338.1,3.512]
[1722435236225,2.99483,3339.1,3338.3,0.08949241]
[1722435236436,2.99483,3339.1,3338.1,6.50768]
[1722435236739,2.995,3338.9,3338.2,0.08973828]
[1722435236880,2.99491,3339.0,3338.2,0.08973828]
[1722435237079,2.99491,3339.0,3338.3,0.36017383]
[1722435237536,2.99482,3339.1,3338.4,0.08973247]
[1722435237882,6.53861212,3339.3,3338.3,3.35564383]
[1722435238081,6.53861212,3339.3,3338.4,2.9954]
[1722435238436,6.53861212,3339.3,3338.4,3.08513247]
[1722435238634,9.53332212,3339.3,3338.4,3.08513247]
[1722435238780,6.53861212,3339.3,3338.4,3.08513247]
[1722435238995,2.99475,3339.2,3338.4,0.08973247]
[1722435239216,2.99475,3339.2,3338.3,3.35570383]
[1722435239738,2.99475,3339.2,3338.4,0.08973247]
[1722435240347,4.54417598,3339.2,3338.4,0.08973247]
[1722435240627,4.54417598,3339.2,3338.2,2.99562]
[1722435240836,2.2775,3339.3,3338.5,2.99531]
[1722435241041,2.2775,3339.3,3338.6,0.08971025]
[1722435241207,7.39180116,3339.5,3338.6,0.08971025]
[1722435241527,7.39180116,3339.5,3339.1,6.50674]
[1722435241706,5.60635513,3340.4,3339.1,3.512]
[1722435241707,11.94957768,3340.1,3339.1,3.512]
[1722435241898,2.99401,3340.0,3339.2,0.08969284]
[1722435242214,2.99437,3339.6,3339.2,0.08969284]
[1722435242413,4.55817652,3339.6,3338.7,2.99515]
[1722435242603,4.55817652,3339.6,3338.8,0.08965519]
[1722435242803,4.55831652,3339.5,3338.8,0.08965519]
[1722435242987,5.46437,3339.6,3338.6,2.99526]
[1722435243188,1.56509195,3339.5,3338.7,0.299526]
[1722435243396,1.56509195,3339.4,3338.8,2.99507]
[1722435243607,1.56509195,3339.5,3338.9,0.08965229]
[1722435243822,1.56509195,3339.4,3338.7,3.294686]
[1722435244026,1.56509195,3339.4,3338.8,0.08965519]
[1722435244387,1.56509195,3339.3,3338.8,0.08965519]
[1722435244722,1.56509195,3339.4,3338.8,0.08965519]
[1722435245038,1.56509195,3339.0,3338.8,0.08965519]
[1722435245211,1.56509195,3339.0,3338.4,2.99544]
[1722435245381,1.56509195,3338.8,3338.1,2.99564]
[1722435245582,1.56509195,3338.8,3338.1,2.99571]
[1722435245781,1.56509195,3338.8,3338.3,2.99548]
[1722435246079,2.9945,3339.5,3337.8,10.27595]
[1722435246080,4.87284034,3339.2,3338.4,0.08959127]
[1722435246287,10.38610116,3339.7,3338.4,0.08959127]
[1722435246288,1.56726101,3338.8,3338.4,0.08959127]
[1722435246481,1.56726101,3338.7,3337.9,2.99589]
[1722435246737,2.99504,3338.9,3337.6,2.48937808]
[1722435246738,1.56726101,3338.6,3338.5,0.08958837]
[1722435246889,1.88071321,3338.8,3338.0,2.99579]
[1722435247076,1.88071321,3338.8,3337.9,2.99585]
[1722435247077,1.56788927,3338.5,3337.9,2.99585]
[1722435247281,1.56788927,3338.3,3338.1,0.08957041]
[1722435247526,1.56788927,3338.4,3338.0,0.08957332]
[1722435247850,1.56788927,3338.3,3338.1,0.08957041]
[1722435248029,1.56788927,3338.3,3338.1,2.9957]
[1722435248232,1.56788927,3338.3,3338.2,0.08956751]
[1722435248430,1.56788927,3338.3,3337.9,2.99588]
[1722435248636,1.56788927,3338.3,3338.0,0.08957332]
[1722435248802,1.56788927,3338.2,3337.8,2.99597]
[1722435248999,1.56788927,3338.2,3337.9,3.08541622]
[1722435249204,1.56788927,3338.2,3337.9,0.08957622]
[1722435249506,1.56955843,3338.1,3337.9,0.08957622]
[1722435249741,1.56955843,3338.0,3337.9,0.08957622]
[1722435249941,1.56955843,3338.0,3337.7,2.642]
[1722435250145,1.56955843,3338.0,3337.9,0.08957622]
[1722435250449,1.88347012,3338.2,3337.9,0.08957622]
[1722435250645,1.88347012,3338.2,3337.7,2.642]
[1722435250947,1.57007007,3337.9,3337.8,0.08957912]
[1722435251272,1.57007007,3337.9,3337.6,2.99615]
[1722435251446,1.57051101,3337.8,3337.6,2.99615]
[1722435251806,1.57051101,3337.8,3337.0,2.99669]
[1722435251807,2.3843,3337.7,3336.0,0.2998]
[1722435252017,1.57082654,3336.7,3336.3,2.99726]
[1722435252237,1.57082654,3336.7,3335.9,2.642]
[1722435252238,1.57082654,3336.9,3336.6,3.08506407]
[1722435252460,5.38042,3337.7,3336.6,3.08504407]
[1722435252670,1.56963958,3336.7,3336.6,0.08803407]
[1722435252870,1.8835675,3337.0,3336.6,0.08803407]
[1722435253023,1.56971033,3336.8,3336.6,0.08803407]
[1722435253259,1.8835675,3337.1,3336.7,0.08376808]
[1722435253480,5.19383541,3337.4,3336.7,0.08376808]
[1722435253481,1.8835675,3337.0,3336.7,0.08376808]
[1722435253672,1.56864346,3336.9,3336.7,0.08376808]
[1722435254170,2.99643,3337.3,3336.7,0.08376808]
[1722435254171,1.8835675,3337.0,3336.7,0.08376808]
[1722435254468,1.56767152,3336.8,3336.7,0.08376808]
[1722435254658,1.8835675,3337.0,3336.7,0.08376808]
[1722435254955,1.8835675,3337.1,3336.7,0.08376808]
[1722435255198,1.56767866,3336.8,3336.7,0.08376808]
[1722435255336,1.8835675,3337.0,3336.7,0.08376808]
[1722435255881,1.8803427,3337.1,3336.7,0.08376808]
[1722435256081,0.6224104,3337.2,3336.7,0.08376808]
[1722435256082,1.56691746,3336.9,3336.7,0.08376808]
[1722435256483,1.56691746,3336.8,3336.7,0.08376808]
[1722435256847,1.56691746,3336.9,3336.7,3.08073808]
[1722435257046,1.56691746,3336.9,3336.7,0.08376808]
[1722435257279,3.06591397,3337.6,3336.7,0.08376808]
[1722435257280,1.56691746,3337.0,3336.7,0.08376808]
[1722435257783,1.56691746,3336.9,3336.7,0.08376808]
[1722435258194,1.56691746,3336.8,3336.7,0.08376808]
[1722435258507,1.8803427,3337.1,3336.7,0.08376808]
[1722435258508,1.56691746,3336.9,3336.7,0.08376808]
[1722435258641,0.64438802,3336.9,3336.7,0.08376808]
[1722435259041,2.20926636,3336.9,3336.7,0.08376808]
[1722435259267,1.56487834,3336.9,3336.7,0.08376808]
[1722435260171,1.56487834,3337.0,3336.6,0.08803407]
[1722435260369,1.56487834,3337.0,3336.8,0.08465566]
[1722435260708,1.56487834,3337.0,3336.9,0.08465276]
[1722435260913,4.8743964,3337.2,3336.9,0.08465276]
[1722435261059,1.56429629,3337.0,3336.6,0.08803407]
[1722435261260,1.56429629,3337.0,3336.6,3.08504407]
[1722435261459,7.39180116,3337.4,3336.6,3.08504407]
[1722435261460,1.56429629,3337.2,3336.6,0.08803407]
[1722435261693,1.56429629,3337.1,3336.7,0.08465857]
[1722435261907,2.64768768,3337.1,3336.7,0.08465857]
[1722435262089,1.56387364,3336.9,3336.7,0.08465857]
[1722435262292,1.56387364,3336.9,3336.6,0.08803407]
[1722435262474,1.56387364,3337.0,3336.8,0.08460963]
[1722435262677,1.56387364,3337.0,3336.6,0.08803407]
[1722435262905,1.56387364,3337.1,3336.6,0.08803407]
[1722435263403,1.56387364,3337.2,3336.7,0.0852238]
[1722435263609,1.56387364,3337.1,3336.7,0.0852238]
[1722435264071,1.56387364,3337.2,3336.7,0.0852238]
[1722435264626,1.56387364,3337.2,3336.7,3.0821838]
[1722435264765,1.56387364,3337.3,3336.7,0.40226259]
[1722435264974,1.56387364,3337.3,3336.7,3.39923259]
[1722435265271,1.5629204,3337.3,3336.7,0.40226259]
[1722435265470,8.95472156,3337.4,3336.7,3.39923259]
[1722435265666,8.95472156,3337.4,3336.7,0.40226259]
[1722435265905,1.5629204,3337.3,3336.7,0.0852238]
[1722435266093,8.95472156,3337.4,3336.7,0.0852238]
[1722435266510,1.5629204,3337.3,3336.7,0.0852238]
[1722435266711,1.5629204,3337.2,3336.7,0.0852238]
[1722435267181,1.5629204,3337.2,3336.6,0.08803407]
[1722435267385,1.5629204,3337.1,3336.8,0.08522089]
[1722435267635,1.5629204,3337.2,3336.6,0.08803407]
[1722435267966,1.5629204,3337.1,3336.7,0.0852238]
[1722435268346,1.56295517,3337.2,3336.7,0.0852238]
[1722435268698,1.56295517,3337.2,3336.6,0.08803407]
[1722435269102,1.56295517,3337.2,3336.7,0.0852238]
[1722435269347,1.68230325,3337.2,3336.7,0.0852238]
[1722435269546,1.56295517,3337.1,3336.7,0.0852238]
[1722435269749,6.24178842,3337.2,3336.6,0.08803407]
[1722435269903,1.56295517,3337.2,3336.8,0.08517157]
[1722435270122,10.38816116,3337.4,3336.7,0.08517447]
[1722435270123,1.56295517,3337.3,3336.7,0.08517447]
[1722435270305,1.56295517,3337.3,3336.6,0.08803407]
[1722435270306,1.56295517,3337.0,3336.6,0.08803407]
[1722435270672,2.9968,3336.9,3336.7,0.08518434]
[1722435270803,2.99697,3336.7,3336.6,0.08803407]
[1722435271006,1.56295517,3336.7,3336.6,0.08803407]
[1722435271323,2.99697,3336.7,3336.6,0.08803407]
[1722435271543,3.90095413,3336.8,3336.6,0.08803407]
[1722435271710,1.56285413,3336.9,3336.6,0.08803407]
[1722435271910,2.99679,3336.9,3336.6,0.08803407]
[1722435272114,1.56285413,3336.9,3336.6,0.08803407]
[1722435272312,1.56285413,3337.0,3336.7,0.08518434]
[1722435272550,1.56285413,3337.0,3336.6,0.08803407]
[1722435273127,1.56285413,3336.9,3336.6,0.08803407]
[1722435273354,1.56285413,3336.8,3336.7,0.08518434]
[1722435273549,1.56285413,3336.8,3336.6,0.08803407]
[1722435273704,1.56285413,3337.0,3336.6,0.08803407]
[1722435273922,1.56285413,3337.0,3336.7,0.08518434]
[1722435274362,1.56285413,3337.0,3336.6,0.08803407]
[1722435274576,5.33464,3337.2,3336.6,0.08803407]
[1722435274867,1.56337246,3337.1,3336.7,0.08518434]
[1722435275070,1.56337246,3337.0,3336.7,0.08518434]
[1722435275280,1.56337246,3337.1,3336.7,0.08518434]
[1722435275432,3.91039212,3337.2,3336.6,0.08803407]
[1722435275433,1.56337246,3337.0,3336.6,0.08803407]
[1722435275635,1.56337246,3337.0,3336.7,0.0852238]
[1722435275937,4.56003246,3337.1,3336.7,0.0852238]
[1722435276140,1.56337246,3337.0,3336.7,0.0852238]
[1722435276349,1.56337246,3337.0,3336.6,0.08803407]
[1722435276545,2.07348527,3337.1,3336.6,0.08803407]
[1722435276546,4.56017246,3336.9,3336.6,0.08803407]
[1722435276734,1.56337246,3336.9,3336.7,0.08519749]
[1722435276945,1.56337246,3337.0,3336.7,0.08519749]
[1722435277146,2.99681,3336.9,3336.7,0.08519749]
[1722435277352,1.56337246,3336.9,3336.7,0.08519749]
[1722435277754,2.07348527,3337.1,3336.6,0.08803407]
[1722435277940,1.56265234,3337.0,3336.6,0.08803407]
[1722435278154,4.55940234,3337.0,3336.7,0.08519749]
[1722435278375,5.7561581,3337.0,3336.6,0.08803407]
[1722435279500,2.9968,3336.9,3336.6,0.08803407]
[1722435279786,1.56265234,3336.9,3336.6,0.08803407]
[1722435280091,2.99697,3336.7,3336.6,0.08803407]
[1722435281003,4.55945234,3336.9,3336.6,0.08803407]
[1722435281004,2.99693,3336.8,3336.6,0.08803407]
[1722435281156,2.99697,3336.7,3336.6,0.08803407]
[1722435281894,0.75562686,3336.7,3336.6,0.08803407]
[1722435282049,3.75259686,3336.7,3336.6,0.08803407]
[1722435282902,6.74956686,3336.7,3336.6,0.08803407]
[1722435283040,4.55940887,3336.7,3336.6,0.08803407]
[1722435283392,1.56243887,3336.8,3336.6,0.08803407]
[1722435283599,1.56243887,3337.1,3336.6,0.08803407]
[1722435283739,1.56243887,3337.1,3336.7,0.08237396]
[1722435284173,10.38815116,3337.4,3336.7,0.08237396]
[1722435284390,10.38815116,3337.4,3336.7,3.07933396]
[1722435284391,1.56297298,3337.1,3336.7,3.07933396]
[1722435284582,7.39180116,3337.4,3337.0,2.9967]
[1722435284955,7.39180116,3337.4,3336.8,0.3167368]
[1722435284956,1.56297298,3337.7,3337.1,0.08241824]
[1722435285184,7.39180116,3337.9,3337.1,3.07900824]
[1722435285185,1.56297298,3337.8,3337.1,3.07900824]
[1722435285472,1.56297298,3337.8,3337.2,0.08240876]
[1722435285672,1.56297298,3337.7,3336.8,0.3167368]
[1722435285878,1.56297298,3337.6,3336.9,0.08232212]
[1722435286063,1.56297298,3337.6,3336.6,0.08803407]
[1722435286064,1.56297298,3337.2,3336.6,0.08803407]
[1722435286271,1.56297298,3337.2,3336.7,0.08220957]
[1722435286482,1.56297298,3337.1,3336.7,0.08220957]
[1722435287246,1.56385253,3337.1,3336.7,0.08220957]
[1722435287479,1.56434663,3337.0,3336.7,0.08220957]
[1722435288149,1.56434663,3336.9,3336.7,0.08220957]
[1722435288350,1.87721595,3337.2,3336.7,0.08220957]
[1722435288351,1.56434663,3336.8,3336.7,0.08220957]
[1722435288551,1.56434663,3336.9,3336.7,0.08220957]
[1722435289351,1.56434663,3336.8,3336.7,0.08220957]
[1722435289576,1.87721595,3337.0,3336.7,0.08220957]
[1722435289903,1.56579995,3336.8,3336.7,2.99697]
[1722435290068,1.56579995,3337.1,3336.8,2.99681]
[1722435290266,1.56579995,3337.0,3336.9,0.08230896]
[1722435290471,1.56579995,3337.0,3336.7,0.61420062]
[1722435290472,9.27213358,3337.4,3337.2,0.2]
[1722435291077,7.39180116,3337.4,3337.2,0.2]
[1722435291253,9.27213358,3337.4,3337.2,0.2]
[1722435291447,7.39180116,3337.4,3337.2,0.2]
[1722435291671,7.39180116,3337.4,3337.3,0.08228748]
[1722435291885,7.39180116,3337.4,3337.2,0.2]
[1722435292084,7.39180116,3337.4,3337.3,0.08225132]
[1722435292351,7.5720802,3337.4,3337.2,0.2]
[1722435292551,2.0627214,3337.3,3337.2,0.2]
[1722435292766,0.18025717,3337.3,3337.2,0.2]
[1722435293712,3.35400946,3337.3,3337.2,0.2]
[1722435294124,1.15683512,3337.3,3337.2,0.2]
[1722435294331,1.28762027,3337.3,3337.2,0.2]
[1722435294623,0.31104232,3337.3,3337.2,0.2]
[1722435295819,0.31104232,3337.3,3337.2,0.28204706]
[1722435296919,0.18025717,3337.3,3337.2,0.28204706]
[1722435297098,2.77907908,3337.3,3337.2,0.28204706]
[1722435297298,0.44174344,3337.3,3337.2,0.28204706]
[1722435297735,1.09569426,3337.3,3337.2,0.28204706]
[1722435298177,4.19724904,3337.3,3337.2,0.28204706]
[1722435298371,7.19367904,3337.3,3337.2,0.28204706]
[1722435298591,9.36985426,3337.3,3337.2,0.2]
[1722435299872,12.23911194,3337.3,3337.2,0.2]
[1722435300229,9.37341374,3337.3,3337.2,0.2]
[1722435300375,9.24268194,3337.3,3337.2,0.2]
[1722435300731,9.50413591,3337.3,3337.2,0.2]
[1722435300873,12.50056591,3337.3,3337.2,0.2]
[1722435301387,6.50770591,3337.3,3337.2,0.2]
[1722435301618,5.85375509,3337.3,3337.2,0.2]
[1722435302318,8.85018509,3337.3,3337.2,0.2]
[1722435302519,11.84661509,3337.3,3337.2,0.2]
[1722435303290,11.71588708,3337.3,3337.2,0.2]
[1722435303475,11.84661138,3337.3,3337.2,0.2]
[1722435303703,13.03127252,3337.3,3337.2,0.2]
[1722435303910,10.03484252,3337.3,3337.2,0.2]
[1722435304220,3.57245138,3337.3,3337.2,0.2]
[1722435304390,3.6935716,3337.3,3337.2,0.2]
[1722435304622,3.17372592,3337.3,3337.2,0.2]
[1722435304778,3.17361421,3337.3,3337.2,0.28231008]
[1722435304978,0.57245138,3337.3,3337.2,0.28231008]
[1722435305423,0.31098147,3337.3,3337.2,0.28231008]
[1722435306136,4.30003114,3337.3,3337.2,0.2]
[1722435306438,4.16930684,3337.3,3337.2,0.2]
[1722435306724,4.30365383,3337.3,3337.2,0.2]
[1722435306939,0.31103416,3337.3,3337.2,0.2]
[1722435307237,3.30746416,3337.3,3337.2,0.2]
[1722435307392,9.30389416,3337.3,3337.2,0.2]
[1722435308383,3.31103416,3337.3,3337.2,0.2]
[1722435309184,0.31103416,3337.3,3337.2,0.2]
[1722435309583,0.18025717,3337.3,3337.2,3.27879062]
[1722435309788,0.18025717,3337.3,3337.2,3.87116968]
[1722435310034,0.3110465,3337.3,3337.2,3.87116968]
[1722435310286,2.38263014,3337.3,3337.2,3.87116968]
[1722435310489,2.38263014,3337.3,3337.2,6.86768968]
[1722435310891,0.18025717,3337.3,3337.2,6.86768968]
[1722435311291,2.20237297,3337.6,3337.2,6.25106968]
[1722435311495,0.17994026,3337.5,3337.4,5.99268]
[1722435311720,7.39180116,3338.7,3337.6,2.99611]
[1722435311721,2.20237297,3337.8,3337.6,2.99611]
[1722435311926,2.20237297,3338.0,3337.6,0.0599168]
[1722435312088,2.20237297,3338.1,3337.9,5.99178]
[1722435312288,0.18025189,3338.0,3337.9,2.99589]
[1722435312485,0.18025189,3338.0,3337.9,8.689769]
[1722435312922,2.99473,3339.2,3337.9,8.689769]
[1722435312923,2.19967628,3338.4,3337.9,2.697989]
[1722435313230,2.19967628,3338.5,3338.4,2.99544]
[1722435313450,0.18056074,3338.5,3338.4,2.99544]
[1722435313717,0.18052538,3338.5,3338.4,0.08190052]
[1722435313923,0.18052538,3338.5,3338.4,3.07734052]
[1722435314119,2.99424,3339.8,3338.4,3.07734052]
[1722435314120,2.19967628,3338.8,3338.5,2.99535]
[1722435314426,2.19967628,3338.8,3338.4,3.94023515]
[1722435314427,0.180732,3338.7,3338.4,3.94023515]
[1722435314624,1.88261212,3338.5,3338.4,3.85833463]
[1722435315353,3.47418394,3340.0,3338.4,3.85833463]
[1722435315354,1.56748664,3339.3,3339.2,2.99472]
[1722435315532,3.12169089,3340.5,3338.7,2.99513]
[1722435315533,1.41162882,3339.7,3339.0,2.645]
[1722435315828,0.18064547,3339.6,3338.9,2.99498]
[1722435315985,3.03308409,3339.7,3338.9,2.99498]
[1722435315986,0.44056888,3339.7,3338.9,5.9899]
[1722435316183,0.18114418,3339.6,3339.0,2.99485]
[1722435316431,0.44056888,3339.7,3338.9,2.99498]
[1722435316595,0.44056888,3339.7,3338.7,5.64013]
[1722435316797,7.88227521,3340.0,3338.7,5.64013]
[1722435316798,4.88821521,3340.0,3339.1,5.63981]
[1722435317181,2.59251521,3340.3,3339.5,2.645]
[1722435317301,2.2957,3340.5,3339.5,2.645]
[1722435317302,4.88821521,3340.5,3339.5,2.645]
[1722435317504,3.17452236,3340.4,3339.5,2.645]
[1722435317843,2.99383,3340.2,3339.2,2.99466]
[1722435317981,0.31746524,3340.1,3339.2,2.99466]
[1722435318185,0.18122383,3340.0,3339.2,2.99466]
[1722435318418,0.31746524,3340.1,3339.2,2.99466]
[1722435318741,2.99425,3339.8,3338.7,2.645]
[1722435318938,2.99425,3339.8,3338.7,5.64017]
[1722435318939,2.2957,3339.6,3338.7,5.64017]
[1722435319193,2.2957,3339.6,3338.7,2.645]
[1722435319194,5.29007,3339.6,3338.7,2.645]
[1722435319473,2.99455,3339.4,3338.3,5.64051]
[1722435319675,5.29011,3339.6,3338.4,2.99539]
[1722435319676,0.828466,3339.3,3338.4,2.99539]
[1722435319874,3.0,3339.5,3338.5,2.99529]
[1722435320649,3.0,3339.5,3339.2,0.2]
[1722435320849,2.18931341,3339.8,3339.2,0.2]
[1722435321108,2.18931341,3339.9,3339.3,0.08056033]
[1722435321301,1.87528273,3339.8,3339.3,0.08056033]
[1722435321453,1.87528273,3339.7,3339.2,0.2]
[1722435321652,1.87528273,3339.8,3339.3,0.08056033]
[1722435321888,1.23749061,3339.8,3339.2,0.2]
[1722435322056,1.87517611,3339.6,3339.3,0.08056033]
[1722435322255,1.87517611,3339.6,3339.2,0.2]
[1722435322591,7.86946611,3339.7,3339.2,0.2]
[1722435322768,1.87517611,3339.6,3339.2,0.2]
[1722435322977,1.87517611,3339.6,3339.3,0.08048482]
[1722435323192,4.87517611,3339.7,3339.3,0.08048482]
[1722435323397,4.87517611,3339.7,3339.2,0.2]
[1722435323398,3.0,3339.7,3339.2,0.2]
[1722435323690,3.0,3339.7,3339.3,0.08048482]
[1722435323893,4.14230167,3339.7,3339.2,0.2]
[1722435324111,6.01747778,3339.7,3339.3,0.08048482]
[1722435324270,4.14230167,3339.7,3339.2,0.2]
[1722435324465,7.13658167,3339.7,3339.3,0.08048482]
[1722435324695,9.01175778,3339.7,3339.2,0.2]
[1722435324866,1.32434384,3339.6,3339.3,0.08048482]
[1722435325063,1.32434384,3339.6,3339.2,0.4]
[1722435325306,1.32434384,3339.6,3339.3,0.08048482]
[1722435325470,1.32434384,3339.6,3339.2,0.4]
[1722435325667,4.31871384,3339.6,3339.3,0.08048482]
[1722435325927,4.327434,3339.5,3339.2,0.4]
[1722435326925,2.99463,3339.3,3339.2,0.4]
[1722435327436,1.332914,3339.5,3339.2,0.4]
[1722435328229,3.0,3339.7,3339.3,0.08041919]
[1722435328372,1.87383659,3339.7,3339.3,0.08041919]
[1722435328721,4.87383659,3339.8,3339.4,0.08041629]
[1722435329016,3.0,3339.8,3339.2,0.6]
[1722435329401,3.0,3339.9,3339.3,0.08041919]
[1722435329600,2.05698877,3339.8,3339.3,0.08041919]
[1722435329781,2.05698877,3339.8,3339.2,0.6]
[1722435330120,3.0,3339.9,3339.2,0.6]
[1722435330287,8.31036,3340.0,3339.3,0.08041919]
[1722435330504,2.99437,3339.6,3339.3,0.08041919]
[1722435330744,4.86795659,3339.9,3339.2,0.6]
[1722435330894,10.18414659,3340.0,3339.2,0.6]
[1722435331094,2.05699078,3339.9,3339.3,0.08041919]
[1722435331344,5.05699078,3339.9,3339.3,0.08041919]
[1722435332035,5.05699078,3339.9,3339.3,0.12433695]
[1722435332530,5.05699078,3339.9,3339.2,0.6]
[1722435332531,2.99448,3339.5,3339.2,0.6]
[1722435332737,2.99463,3339.3,3339.2,0.6]
[1722435332956,8.46846,3339.3,3339.2,0.8]
[1722435333114,11.46846,3339.3,3339.2,0.8]
[1722435333529,14.46309,3339.3,3339.2,0.8]
[1722435333736,16.09670112,3339.3,3339.2,0.8]
[1722435334049,14.9750923,3339.3,3339.2,0.8]
[1722435334201,13.10207112,3339.3,3339.2,0.8]
[1722435334396,10.10744112,3339.3,3339.2,0.8]
[1722435334727,2.18519138,3339.7,3339.2,0.8]
[1722435334728,1.87355981,3339.6,3339.2,0.8]
[1722435334931,3.0,3339.6,3339.3,0.12455786]
[1722435335132,3.0,3339.6,3339.2,0.8]
[1722435335303,5.4792,3339.7,3339.2,0.8]
[1722435335655,3.0,3339.7,3339.3,0.12455786]
[1722435335999,2.9945,3339.5,3339.2,0.8]
[1722435336198,7.01843012,3339.7,3339.2,0.8]
[1722435336494,2.99437,3339.6,3339.2,0.8]
[1722435336698,2.99437,3339.6,3339.3,0.12454144]
[1722435336895,2.99437,3339.6,3339.2,0.8]
[1722435337197,4.42028813,3339.6,3339.3,0.12457424]
[1722435337639,5.3948,3339.4,3339.2,1.0]
[1722435337949,2.99463,3339.3,3339.2,1.0]
[1722435338359,8.98926,3339.3,3339.2,1.0]
[1722435339156,5.99463,3339.3,3339.2,1.0]
[1722435339350,7.49473631,3339.3,3339.2,1.0]
[1722435339645,10.48936631,3339.3,3339.2,1.0]
[1722435339857,12.36328432,3339.3,3339.2,1.0]
[1722435340052,10.48936631,3339.3,3339.2,1.0]
[1722435340344,12.36328432,3339.3,3339.2,1.0]
[1722435340812,13.66486067,3339.3,3339.2,1.0]
[1722435341010,13.66486067,3339.3,3339.2,0.609375]
[1722435341334,14.21486067,3339.3,3339.2,0.609375]
[1722435341934,19.69369067,3339.3,3339.2,0.17138671]
[1722435342248,22.27672238,3339.3,3339.2,0.17138671]
[1722435342438,16.69906067,3339.3,3339.2,0.17138671]
[1722435342835,19.28285628,3339.3,3339.2,0.17138671]
[1722435343060,19.2828695,3339.3,3339.2,0.17138671]
[1722435343237,19.69369067,3339.3,3339.2,0.17138671]
[1722435343841,22.81538156,3339.3,3339.2,0.17138671]
[1722435344055,22.81538156,3339.3,3337.1,5.64158]
[1722435344056,2.99581,3338.0,3337.1,5.64158]
[1722435344580,1.87541608,3338.3,3337.2,0.12467924]
[1722435344581,2.99591,3337.9,3337.2,0.12467924]
[1722435345779,9.76160116,3338.4,3337.2,0.12467924]
[1722435345780,2.99599,3337.8,3337.2,0.12467924]
[1722435345948,2.99607,3337.7,3337.2,0.12467924]
[1722435346275,2.99616,3337.6,3336.7,9.925]
[1722435346478,4.87140608,3337.8,3337.3,0.12467502]
[1722435346479,2.99634,3337.4,3337.3,0.12467502]
[1722435346684,2.99645,3337.3,3336.6,2.39853407]
[1722435347043,2.99645,3337.3,3336.7,0.12470035]
[1722435347044,2.99653,3337.2,3336.7,0.12470035]
[1722435348176,4.87337574,3337.2,3336.7,0.12470035]
[1722435348379,3.0,3337.1,3336.7,0.12470035]
[1722435348545,5.99661,3337.1,3336.7,0.12470035]
[1722435348743,3.0,3337.1,3336.7,0.12470035]
[1722435348945,3.0,3337.2,3336.7,0.12470035]
[1722435349280,2.99661,3337.1,3336.7,0.12470035]
[1722435349788,2.99677,3337.0,3336.7,0.12470035]
[1722435350300,2.99661,3337.1,3336.7,0.12470035]
[1722435350484,4.08695457,3337.2,3336.7,0.12470035]
[1722435350685,7.08353457,3337.2,3336.7,0.12470035]
[1722435350997,2.99664,3337.1,3336.7,0.12470035]
[1722435351405,7.08348457,3337.2,3336.7,0.12470035]
[1722435351960,2.99661,3337.1,3336.7,0.12470035]
[1722435352313,1.19568541,3337.1,3336.7,0.12470035]
[1722435352472,4.19229541,3337.1,3336.7,0.12470035]
[1722435352683,2.9967,3337.0,3336.7,0.12470035]
[1722435353099,2.9967,3337.0,3336.6,0.08803407]
[1722435353432,2.9967,3337.0,3336.7,0.12603427]
[1722435353609,2.99688,3336.8,3336.7,0.12603427]
[1722435354111,2.99697,3336.7,3336.6,0.08803407]
[1722435354611,4.20335749,3336.9,3336.6,0.08803407]
[1722435354766,1.20656749,3336.9,3336.6,0.08803407]
[1722435355125,2.99675,3337.0,3336.6,0.08803407]
[1722435355266,2.99684,3336.9,3336.6,0.08803407]
[1722435355623,5.99372,3336.9,3336.7,0.12605071]
[1722435355906,2.99664,3337.1,3336.6,0.08803407]
[1722435356218,2.99686,3336.9,3336.6,0.08803407]
[1722435356370,0.59935,3336.8,3336.6,0.08803407]
[1722435357120,2.99673,3337.0,3336.6,0.08803407]
[1722435357284,2.99673,3337.0,3336.7,0.12605071]
[1722435357487,5.99656,3337.2,3336.7,0.12605071]
[1722435357822,2.99666,3337.1,3336.6,0.08803407]
[1722435358028,3.0,3337.2,3336.6,0.08803407]
[1722435358230,9.26682288,3337.6,3336.7,0.12643207]
[1722435358562,7.39180116,3337.6,3336.9,2.99673]
[1722435359045,2.99632,3337.5,3337.0,0.1264194]
[1722435359181,7.39180116,3337.6,3337.0,0.1264194]
[1722435359387,7.39180116,3337.6,3336.7,2.645]
[1722435359582,7.39180116,3337.6,3337.1,0.12641518]
[1722435359879,7.39180116,3337.6,3336.6,0.08803407]